[Event "2nd Namma Bengaluru Open-A 2025"]
[Site "Bengaluru"]
[Date "2025.04.16"]
[Round "8.15"]
[White "Fedorov, Alexei"]
[Black "Bhoir Paras Dilip"]
[Result "1-0"]
[Annotator "RC"]
[ECO "B70"]
[WhiteElo "2396"]
[BlackElo "2085"]
[PlyCount "109"]
[EventDate "2025.04.10"]
[EventType "swiss"]
[EventCountry "IND"]
[SourceTitle "playchess.com"]
[Source "ChessBase"]
[SourceQuality "1"]
[TimeControl "5400+30"]

1. e4 {[%emt 0:00:03]} c5 {[%emt 0:04:51]} 2. Nf3 {[%emt 0:00:12]} d6 {[%emt 0:00:12]} 3. d4 {[%emt 0:00:07]} cxd4 {[%emt 0:00:04]} 4. Nxd4 {[%emt 0:00:05]} Nf6 {[%emt 0:00:05]} 5. Nc3 {[%emt 0:00:14]} g6 {[%emt 0:00:07]} 6. g3 {[%emt 0:00:33]} Nc6 {[%emt 0:00:22]} 7. Nxc6 {[%emt 0:00:12]} bxc6 {[%emt 0:00:09]} 8. Bg2 {[%emt 0:00:05]} Qc7 {[%emt 0:06:02]} 9. b3 {[%emt 0:00:23]} Bg7 {[%emt 0:01:58]} 10. Bb2 {[%emt 0:00:07]} O-O {[%emt 0:11:31]} 11. O-O {[%emt 0:00:11]} Rd8 {[%emt 0:01:06]} 12. Re1 {[%emt 0:02:11]} e5 {[%emt 0:11:40]} 13. Na4 {[%emt 0:14:07]} Bg4 {[%emt 0:05:14]} 14. Qd3 {[%emt 0:08:11]} Re8 {[%emt 0:05:14]} 15. h3 {[%emt 0:00:49]} Be6 {[%emt 0:00:26]} 16. Rad1 {[%emt 0:03:59]} Rad8 {[%emt 0:00:57]} 17. c4 {[%emt 0:01:32]} Qc8 {[%emt 0:04:26]} 18. Qf1 {[%emt 0:06:22]} Nh5 {[%emt 0:05:33]} 19. Kh2 {[%emt 0:02:48]} Qc7 {[%emt 0:08:29]} 20. Qe2 {[%emt 0:07:02]} f5 {[%emt 0:05:02]} 21. exf5 {[%emt 0:00:32]} Bxf5 {[%emt 0:00:04]} 22. Qf3 {[%emt 0:03:13]} e4 {[%emt 0:04:20]} 23. Qe3 {[%emt 0:03:18]} d5 {[%emt 0:00:58]} 24. Bd4 {[%emt 0:02:16]} Bxd4 {[%emt 0:02:51]} 25. Rxd4 {[%emt 0:00:48]} Ng7 {[%emt 0:00:45]} 26. cxd5 {[%emt 0:06:43]} cxd5 {[%emt 0:00:07]} 27. Qc3 {[%emt 0:01:33]} Qe5 {[%emt 0:02:33]} 28. f4 {[%emt 0:00:21]} Qb8 {[%emt 0:02:00]} 29. Red1 {[%emt 0:03:28]} Be6 {[%emt 0:02:08]} 30. Nc5 {[%emt 0:00:47]} Bf7 {[%emt 0:09:07]} 31. Rb4 {[%emt 0:01:47]} Qc8 {[%emt 0:02:05]} 32. Rb7 {[%emt 0:00:31]} Rf8 {[%emt 0:01:06]} 33. Qa5 {[%emt 0:01:55]} Ne6 {[%emt 0:02:09]} 34. Nxe6 {[%emt 0:02:38]} Qxe6 {[%emt 0:00:04]} 35. Rxa7 {[%emt 0:02:17]} Rc8 {[%emt 0:02:14]} 36. Qd2 {[%emt 0:03:23]} Rc5 {[%emt 0:00:37]} 37. b4 {[%emt 0:01:43]} Rc4 {[%emt 0:00:17]} 38. Bf1 {[%emt 0:00:27]} e3 {[%emt 0:00:22]} 39. Qb2 {[%emt 0:00:42]} e2 {[%emt 0:00:57]} 40. Bxe2 {[%emt 0:04:22]} Rxb4 {[%emt 0:00:05]} 41. Qd2 {[%emt 0:05:41]} Rfb8 {[%emt 0:00:43]} 42. Ra6 {[%emt 0:03:15]} Qe7 {[%emt 0:01:15]} 43. Rc6 {[%emt 0:01:22]} Rb2 {[%emt 0:01:11]} 44. Rc2 {[%emt 0:00:53]} Rxc2 {[%emt 0:00:11]} 45. Qxc2 {[%emt 0:00:04]} Qe3 {[%emt 0:00:32]} 46. Bf1 {[%emt 0:00:38]} h5 {[%emt 0:00:27]} 47. h4 {[%emt 0:01:18]} Qa3 {[%emt 0:00:23]} 48. Rd2 {[%emt 0:00:34]} Re8 {[%emt 0:01:00]} 49. Bg2 {[%emt 0:00:28]} Re3 {[%emt 0:00:25]} 50. Bxd5 {[%emt 0:01:07]} Rxg3 {[%emt 0:00:32]} 51. Bxf7+ {[%emt 0:00:19]} Kg7 {[%emt 0:00:29]} 52. Bb3 {[%emt 0:00:28]} Rg4 {[%emt 0:00:22]} 53. Qc3+ {[%emt 0:00:10]} Kf8 {[%emt 0:00:25]} 54. Qf6+ {[%emt 0:00:08]} Ke8 {[%emt 0:00:03]} 55. Rd8# {[%emt 0:00:11]} 1-0

[Event "2nd Namma Bengaluru Open-A 2025"]
[Site "Bengaluru"]
[Date "2025.04.16"]
[Round "8.16"]
[White "Koustuv Dash"]
[Black "Sammed Jaykumar, Shete"]
[Result "1/2-1/2"]
[Annotator "RC"]
[ECO "E46"]
[WhiteElo "2131"]
[BlackElo "2391"]
[PlyCount "149"]
[EventDate "2025.04.10"]
[EventType "swiss"]
[EventCountry "IND"]
[SourceTitle "playchess.com"]
[Source "ChessBase"]
[SourceQuality "1"]
[TimeControl "5400+30"]

1. d4 {[%emt 0:00:36]} Nf6 {[%emt 0:00:27]} 2. c4 {[%emt 0:00:28]} e6 {[%emt 0:00:11]} 3. Nc3 {[%emt 0:00:24]} Bb4 {[%emt 0:00:05]} 4. e3 {[%emt 0:00:27]} O-O {[%emt 0:00:11]} 5. Nge2 {[%emt 0:00:37]} Re8 {[%emt 0:02:39]} 6. a3 {[%emt 0:00:42]} Bf8 {[%emt 0:00:38]} 7. e4 {[%emt 0:02:52]} d6 {[%emt 0:00:08]} 8. Ng3 {[%emt 0:01:04]} c5 {[%emt 0:02:55]} 9. dxc5 {[%emt 0:07:42]} dxc5 {[%emt 0:00:24]} 10. Qxd8 {[%emt 0:07:04]} Rxd8 {[%emt 0:00:07]} 11. Be2 {[%emt 0:09:21]} Nc6 {[%emt 0:00:38]} 12. O-O {[%emt 0:00:26]} b6 {[%emt 0:02:38]} 13. Be3 {[%emt 0:10:17]} Bb7 {[%emt 0:03:15]} 14. Rad1 {[%emt 0:05:22]} Nd4 {[%emt 0:03:38]} 15. f3 {[%emt 0:06:11]} Bd6 {[%emt 0:14:40]} 16. Rf2 {[%emt 0:08:11]} Be5 {[%emt 0:06:02]} 17. Bf1 {[%emt 0:04:22]} Nb3 {[%emt 0:05:21]} 18. Rxd8+ {[%emt 0:01:54]} Rxd8 {[%emt 0:55:33]} 19. Rc2 {[%emt 0:00:22]} h6 {[%emt 0:00:00]} 20. Kf2 {[%emt 0:03:46]} g5 {[%emt 0:00:00]} 21. h3 {[%emt 0:01:04]} Kg7 {[%emt 0:00:00]} 22. Nge2 {[%emt 0:02:58]} Nh5 {[%emt 0:00:00]} 23. Nc1 {[%emt 0:04:16]} Nd4 {[%emt 0:00:00]} 24. Rd2 {[%emt 0:00:10]} Ba6 {[%emt 0:00:00]} 25. Nb3 {[%emt 0:16:26]} Ng3 {[%emt 0:00:00]} 26. Nb5 {[%emt 0:01:29]} Nxf1 {[%emt 0:00:00]} 27. Kxf1 {[%emt 0:00:06]} Nc6 {[%emt 0:00:00]} 28. Rxd8 {[%emt 0:01:19]} Nxd8 {[%emt 0:00:00]} 29. Bc1 {[%emt 0:01:01]} Nc6 {[%emt 0:00:00]} 30. Ke2 {[%emt 0:01:24]} f5 {[%emt 0:00:00]} 31. exf5 {[%emt 0:00:39]} exf5 {[%emt 0:00:00]} 32. a4 {[%emt 0:00:28]} Bc8 {[%emt 0:00:28]} 33. Nd2 {[%emt 0:02:26]} a6 {[%emt 0:01:32]} 34. Na3 {[%emt 0:00:23]} Nd4+ {[%emt 0:00:41]} 35. Kd1 {[%emt 0:00:28]} g4 {[%emt 0:00:16]} 36. hxg4 {[%emt 0:01:03]} fxg4 {[%emt 0:00:06]} 37. Nc2 {[%emt 0:00:28]} gxf3 {[%emt 0:02:43]} 38. Nxf3 {[%emt 0:00:17]} Nxf3 {[%emt 0:00:05]} 39. gxf3 {[%emt 0:00:01]} h5 {[%emt 0:00:21]} 40. Ke2 {[%emt 0:00:32]} Kf7 {[%emt 0:00:31]} 41. b3 {[%emt 0:01:09]} h4 {[%emt 0:00:07]} 42. Kf2 {[%emt 0:00:41]} a5 {[%emt 0:01:57]} 43. f4 {[%emt 0:00:32]} Bf6 {[%emt 0:00:25]} 44. Ne3 {[%emt 0:00:20]} Bb7 {[%emt 0:00:41]} 45. Nd5 {[%emt 0:00:34]} Bd8 {[%emt 0:00:33]} 46. Kf3 {[%emt 0:00:23]} Kg6 {[%emt 0:01:09]} 47. Be3 {[%emt 0:00:36]} Kf5 {[%emt 0:01:01]} 48. Bf2 {[%emt 0:00:16]} Bc6 {[%emt 0:00:05]} 49. Be1 {[%emt 0:00:12]} Bf6 {[%emt 0:01:15]} 50. Bd2 {[%emt 0:01:03]} Bd8 {[%emt 0:00:53]} 51. Be1 {[%emt 0:00:16]} h3 {[%emt 0:00:13]} 52. Kg3 {[%emt 0:00:26]} Bh4+ {[%emt 0:00:19]} 53. Kxh3 {[%emt 0:00:42]} Bxe1 {[%emt 0:00:05]} 54. Ne7+ {[%emt 0:00:03]} Kxf4 {[%emt 0:00:05]} 55. Nxc6 {[%emt 0:00:06]} Ke4 {[%emt 0:00:19]} 56. Ne7 {[%emt 0:01:04]} Kd3 {[%emt 0:00:06]} 57. Nd5 {[%emt 0:00:09]} Kc2 {[%emt 0:00:23]} 58. Nxb6 {[%emt 0:00:08]} Kxb3 {[%emt 0:00:02]} 59. Kg4 {[%emt 0:00:17]} Bf2 {[%emt 0:02:26]} 60. Kf5 {[%emt 0:01:17]} Bh4 {[%emt 0:01:05]} 61. Ke6 {[%emt 0:00:40]} Bd8 {[%emt 0:00:02]} 62. Nd7 {[%emt 0:00:20]} Kxa4 {[%emt 0:00:10]} 63. Nxc5+ {[%emt 0:00:20]} Kb4 {[%emt 0:00:02]} 64. Kd5 {[%emt 0:00:44]} Bb6 {[%emt 0:02:08]} 65. Na6+ {[%emt 0:00:40]} Kc3 {[%emt 0:00:41]} 66. c5 {[%emt 0:00:24]} Bd8 {[%emt 0:00:21]} 67. c6 {[%emt 0:00:30]} a4 {[%emt 0:00:12]} 68. Kc5 {[%emt 0:00:46]} a3 {[%emt 0:00:22]} 69. Nb4 {[%emt 0:00:15]} Kb3 {[%emt 0:00:50]} 70. Kb5 {[%emt 0:00:25]} Bc7 {[%emt 0:00:39]} 71. Nd3 {[%emt 0:00:48]} Kc3 {[%emt 0:00:21]} 72. Nb4 {[%emt 0:00:15]} Kb3 {[%emt 0:00:30]} 73. Nd3 {[%emt 0:00:26]} Bd6 {[%emt 0:00:07]} 74. Nb4 {[%emt 0:00:28]} Kb2 {[%emt 0:00:06]} 75. Ka4 {[%emt 0:00:58]} 1/2-1/2

[Event "2nd Namma Bengaluru Open-A 2025"]
[Site "Bengaluru"]
[Date "2025.04.16"]
[Round "8.17"]
[White "Vignesh B"]
[Black "Saravana, Krishnan P."]
[Result "0-1"]
[Annotator "RC"]
[ECO "B12"]
[WhiteElo "2191"]
[BlackElo "2177"]
[PlyCount "108"]
[EventDate "2025.04.10"]
[EventType "swiss"]
[EventCountry "IND"]
[SourceTitle "playchess.com"]
[Source "ChessBase"]
[SourceQuality "1"]
[TimeControl "5400+30"]

1. e4 {[%emt 0:02:11]} c6 {[%emt 0:00:14]} 2. d4 {[%emt 0:00:47]} d5 {[%emt 0:00:07]} 3. e5 {[%emt 0:00:20]} Bf5 {[%emt 0:00:21]} 4. h4 {[%emt 0:00:10]} a6 {[%emt 0:00:21]} 5. Nc3 {[%emt 0:04:19]} h5 {[%emt 0:00:54]} 6. Bd3 {[%emt 0:00:32]} Bxd3 {[%emt 0:00:40]} 7. Qxd3 {[%emt 0:00:02]} e6 {[%emt 0:00:31]} 8. Bg5 {[%emt 0:05:51]} Qc7 {[%emt 0:04:10]} 9. Nf3 {[%emt 0:07:27]} Nd7 {[%emt 0:03:27]} 10. Ne2 {[%emt 0:05:32]} c5 {[%emt 0:12:52]} 11. c4 {[%emt 0:06:35]} dxc4 {[%emt 0:04:24]} 12. Qxc4 {[%emt 0:00:56]} Ne7 {[%emt 0:00:50]} 13. O-O {[%emt 0:03:07]} Nd5 {[%emt 0:03:08]} 14. dxc5 {[%emt 0:23:12]} Qxc5 {[%emt 0:12:58]} 15. Qe4 {[%emt 0:02:06]} Qb4 {[%emt 0:02:49]} 16. Ned4 {[%emt 0:00:10]} Bc5 {[%emt 0:01:15]} 17. a3 {[%emt 0:02:39]} Qb6 {[%emt 0:02:29]} 18. Rac1 {[%emt 0:12:25]} O-O {[%emt 0:07:49]} 19. b4 {[%emt 0:03:53]} Bxd4 {[%emt 0:01:23]} 20. Nxd4 {[%emt 0:00:24]} Rfc8 {[%emt 0:02:42]} 21. Nf5 {[%emt 0:01:03]} exf5 {[%emt 0:02:52]} 22. Qxd5 {[%emt 0:00:19]} Nf8 {[%emt 0:00:24]} 23. Qf3 {[%emt 0:01:25]} g6 {[%emt 0:00:49]} 24. Rxc8 {[%emt 0:02:24]} Rxc8 {[%emt 0:03:17]} 25. Rd1 {[%emt 0:00:02]} Ne6 {[%emt 0:08:21]} 26. Bf6 {[%emt 0:00:07]} Qc6 {[%emt 0:04:49]} 27. Qxc6 {[%emt 0:04:08]} Rxc6 {[%emt 0:02:31]} 28. a4 {[%emt 0:03:30]} Kf8 {[%emt 0:18:03]} 29. Rd7 {[%emt 0:03:09]} Rc1+ {[%emt 0:00:00]} 30. Kh2 {[%emt 0:00:04]} Rc7 {[%emt 0:00:00]} 31. Rd5 {[%emt 0:03:17]} Ke8 {[%emt 0:00:00]} 32. b5 {[%emt 0:00:21]} a5 {[%emt 0:00:00]} 33. Rd1 {[%emt 0:02:21]} Rc4 {[%emt 0:00:00]} 34. Rd6 {[%emt 0:00:31]} Rd4 {[%emt 0:00:00]} 35. Rb6 {[%emt 0:00:22]} Rd7 {[%emt 0:00:00]} 36. Bg5 {[%emt 0:01:11]} Nc5 {[%emt 0:00:00]} 37. Be3 {[%emt 0:00:14]} Ne6 {[%emt 0:01:13]} 38. Bg5 {[%emt 0:00:32]} Nc5 {[%emt 0:01:10]} 39. Be3 {[%emt 0:00:06]} Nxa4 {[%emt 0:00:33]} 40. Rf6 {[%emt 0:00:05]} Re7 {[%emt 0:00:28]} 41. Rd6 {[%emt 0:00:25]} Rd7 {[%emt 0:00:30]} 42. Rf6 {[%emt 0:00:05]} Re7 {[%emt 0:01:26]} 43. Rd6 {[%emt 0:00:06]} Re6 {[%emt 0:00:06]} 44. Rd4 {[%emt 0:01:46]} Nb6 {[%emt 0:00:48]} 45. Bg5 {[%emt 0:02:00]} Nd7 {[%emt 0:00:15]} 46. f4 {[%emt 0:00:38]} f6 {[%emt 0:00:33]} 47. exf6 {[%emt 0:00:10]} Nxf6 {[%emt 0:00:07]} 48. Kg1 {[%emt 0:00:58]} Nd7 {[%emt 0:01:20]} 49. Rc4 {[%emt 0:00:23]} Rb6 {[%emt 0:00:40]} 50. Rc1 {[%emt 0:00:29]} Rxb5 {[%emt 0:00:27]} 51. Re1+ {[%emt 0:00:02]} Kf8 {[%emt 0:00:06]} 52. Re6 {[%emt 0:01:02]} a4 {[%emt 0:00:36]} 53. Rd6 {[%emt 0:00:27]} Nc5 {[%emt 0:00:30]} 54. Rd8+ {[%emt 0:00:37]} Kf7 {[%emt 0:00:06]} 0-1

[Event "2nd Namma Bengaluru Open-A 2025"]
[Site "Bengaluru"]
[Date "2025.04.16"]
[Round "8.18"]
[White "Ashwin Sairam"]
[Black "Manish Anto Cristiano F"]
[Result "1/2-1/2"]
[Annotator "RC"]
[ECO "B22"]
[WhiteElo "2074"]
[BlackElo "2361"]
[PlyCount "87"]
[EventDate "2025.04.10"]
[EventType "swiss"]
[EventCountry "IND"]
[SourceTitle "playchess.com"]
[Source "ChessBase"]
[SourceQuality "1"]
[TimeControl "5400+30"]

1. e4 {[%emt 0:00:06]} c5 {[%emt 0:00:15]} 2. d4 {[%emt 0:00:11]} cxd4 {[%emt 0:00:11]} 3. c3 {[%emt 0:00:03]} Nf6 {[%emt 0:00:36]} 4. e5 {[%emt 0:00:06]} Nd5 {[%emt 0:00:07]} 5. Nf3 {[%emt 0:00:04]} Nc6 {[%emt 0:00:24]} 6. Bc4 {[%emt 0:00:04]} Nb6 {[%emt 1:31:57]} 7. Bb3 {[%emt 0:00:04]} d6 {[%emt 0:00:00]} 8. exd6 {[%emt 0:00:08]} e6 {[%emt 0:00:00]} 9. cxd4 {[%emt 0:06:32]} Bxd6 {[%emt 0:00:00]} 10. O-O {[%emt 1:28:12]} O-O {[%emt 0:00:00]} 11. Re1 {[%emt 0:00:00]} Nd5 {[%emt 0:00:00]} 12. Nc3 {[%emt 0:00:00]} Nxc3 {[%emt 0:00:00]} 13. bxc3 {[%emt 0:00:00]} Bd7 {[%emt 0:00:00]} 14. Qd3 {[%emt 0:00:00]} Be7 {[%emt 0:00:00]} 15. Bf4 {[%emt 0:00:00]} Rc8 {[%emt 0:00:00]} 16. Rad1 {[%emt 0:00:00]} Bf6 {[%emt 0:00:00]} 17. d5 {[%emt 0:00:00]} exd5 {[%emt 0:00:00]} 18. Qxd5 {[%emt 0:00:00]} Bg4 {[%emt 0:00:00]} 19. Bd6 {[%emt 0:00:00]} Be6 {[%emt 0:00:00]} 20. Rxe6 {[%emt 0:00:00]} fxe6 {[%emt 0:00:00]} 21. Qxe6+ {[%emt 0:00:00]} Kh8 {[%emt 0:00:00]} 22. Bxf8 {[%emt 0:00:00]} Qxf8 {[%emt 0:00:00]} 23. Bc2 {[%emt 0:00:00]} Qg8 {[%emt 0:00:00]} 24. Qh3 {[%emt 0:00:00]} Ne7 {[%emt 0:00:00]} 25. Nd4 {[%emt 0:00:00]} g6 {[%emt 0:00:00]} 26. Qf3 {[%emt 0:00:00]} Qf8 {[%emt 0:00:00]} 27. Ne6 {[%emt 0:00:26]} Qf7 {[%emt 0:00:00]} 28. Rd8+ {[%emt 0:02:28]} Rxd8 {[%emt 0:00:00]} 29. Nxd8 {[%emt 0:00:03]} Qg7 {[%emt 0:00:00]} 30. Bb3 {[%emt 0:01:46]} Nc6 {[%emt 0:00:00]} 31. Nf7+ {[%emt 0:00:40]} Kg8 {[%emt 0:00:00]} 32. Nd6+ {[%emt 0:00:16]} Kf8 {[%emt 0:00:00]} 33. Ne4 {[%emt 0:01:16]} Ke7 {[%emt 0:00:00]} 34. Qh3 {[%emt 0:01:29]} Nd8 {[%emt 0:00:00]} 35. Qc8 {[%emt 0:01:05]} Kf8 {[%emt 0:00:00]} 36. Nc5 {[%emt 0:00:21]} Qe7 {[%emt 0:00:00]} 37. Ne6+ {[%emt 0:00:10]} Ke8 {[%emt 0:00:00]} 38. Nc7+ {[%emt 0:00:04]} Kf8 {[%emt 0:00:00]} 39. Ne6+ {[%emt 0:00:02]} Ke8 {[%emt 0:00:00]} 40. g4 {[%emt 0:01:14]} b6 {[%emt 0:01:57]} 41. Nc7+ {[%emt 0:00:43]} Kf8 {[%emt 0:01:03]} 42. Ne6+ {[%emt 0:00:03]} Ke8 {[%emt 0:00:04]} 43. Nc7+ {[%emt 0:02:14]} Kf8 {[%emt 0:00:05]} 44. Ne6+ {[%emt 0:00:08]} 1/2-1/2

[Event "2nd Namma Bengaluru Open-A 2025"]
[Site "Bengaluru"]
[Date "2025.04.16"]
[Round "8.19"]
[White "Subhayan Kundu"]
[Black "Chinmay Kowshik"]
[Result "1-0"]
[Annotator "RC"]
[ECO "A31"]
[WhiteElo "2356"]
[BlackElo "2011"]
[PlyCount "81"]
[EventDate "2025.04.10"]
[EventType "swiss"]
[EventCountry "IND"]
[SourceTitle "playchess.com"]
[Source "ChessBase"]
[SourceQuality "1"]
[TimeControl "5400+30"]

1. e4 {[%emt 0:08:21]} c5 {[%emt 0:00:08]} 2. Nf3 {[%emt 0:00:24]} e6 {[%emt 0:00:07]} 3. d4 {[%emt 0:00:08]} cxd4 {[%emt 0:00:05]} 4. Nxd4 {[%emt 0:00:05]} a6 {[%emt 0:00:08]} 5. c4 {[%emt 0:01:01]} Nf6 {[%emt 0:00:14]} 6. Nc3 {[%emt 0:00:11]} Qc7 {[%emt 0:01:34]} 7. a3 {[%emt 0:00:59]} d6 {[%emt 0:01:50]} 8. Be3 {[%emt 0:00:52]} Nbd7 {[%emt 0:01:50]} 9. Be2 {[%emt 0:00:59]} b6 {[%emt 0:03:26]} 10. O-O {[%emt 0:00:15]} Bb7 {[%emt 0:00:24]} 11. f3 {[%emt 0:00:16]} Be7 {[%emt 0:01:01]} 12. Qd2 {[%emt 0:00:20]} O-O {[%emt 0:00:17]} 13. b4 {[%emt 0:01:31]} Rac8 {[%emt 0:03:45]} 14. Rac1 {[%emt 0:00:52]} Qb8 {[%emt 0:01:10]} 15. Rfd1 {[%emt 0:01:34]} Bd8 {[%emt 0:00:50]} 16. Nb3 {[%emt 0:00:28]} Bc7 {[%emt 0:00:04]} 17. Bf4 {[%emt 0:00:04]} Ne5 {[%emt 0:00:09]} 18. Bxe5 {[%emt 0:00:18]} dxe5 {[%emt 0:00:06]} 19. Qe3 {[%emt 0:00:49]} Rfd8 {[%emt 0:01:23]} 20. c5 {[%emt 0:00:18]} b5 {[%emt 0:00:32]} 21. Na2 {[%emt 0:03:10]} Rxd1+ {[%emt 0:00:50]} 22. Rxd1 {[%emt 0:00:05]} Rd8 {[%emt 0:00:20]} 23. Rc1 {[%emt 0:00:34]} Bc6 {[%emt 0:02:15]} 24. Na5 {[%emt 0:00:28]} Bxa5 {[%emt 0:01:25]} 25. bxa5 {[%emt 0:00:06]} Qc7 {[%emt 0:09:37]} 26. Nb4 {[%emt 0:00:38]} Nd7 {[%emt 0:00:41]} 27. Nxa6 {[%emt 0:08:18]} Qxa5 {[%emt 0:00:11]} 28. Nb4 {[%emt 0:00:06]} Nb8 {[%emt 0:00:05]} 29. Qc3 {[%emt 0:03:11]} Qa7 {[%emt 0:20:21]} 30. Nxc6 {[%emt 0:11:36]} Nxc6 {[%emt 0:00:06]} 31. Bxb5 {[%emt 0:00:04]} Nd4 {[%emt 0:00:24]} 32. a4 {[%emt 0:01:06]} Rb8 {[%emt 0:05:28]} 33. Qc4 {[%emt 0:05:34]} Qa5 {[%emt 0:16:17]} 34. c6 {[%emt 0:04:24]} Qd2 {[%emt 0:09:01]} 35. Qc3 {[%emt 0:09:26]} Qg5 {[%emt 0:09:38]} 36. c7 {[%emt 0:00:48]} Rc8 {[%emt 0:00:27]} 37. Kh1 {[%emt 0:00:45]} Qf4 {[%emt 0:01:28]} 38. Rf1 {[%emt 0:03:27]} Qh4 {[%emt 0:03:37]} 39. Ba6 {[%emt 0:00:26]} g6 {[%emt 0:00:32]} 40. Bxc8 {[%emt 0:00:21]} Ne2 {[%emt 0:00:06]} 41. Qe1 {[%emt 0:00:15]} 1-0

[Event "2nd Namma Bengaluru Open-A 2025"]
[Site "Bengaluru"]
[Date "2025.04.16"]
[Round "8.20"]
[White "Siddhanth Poonja"]
[Black "Venkatesh, M.R."]
[Result "0-1"]
[Annotator "RC"]
[ECO "A20"]
[WhiteElo "2046"]
[BlackElo "2355"]
[PlyCount "132"]
[EventDate "2025.04.10"]
[EventType "swiss"]
[EventCountry "IND"]
[SourceTitle "playchess.com"]
[Source "ChessBase"]
[SourceQuality "1"]
[TimeControl "5400+30"]

1. c4 {[%emt 0:00:10]} e5 {[%emt 0:00:23]} 2. g3 {[%emt 0:00:09]} Nf6 {[%emt 0:00:24]} 3. Bg2 {[%emt 0:00:22]} c6 {[%emt 0:00:42]} 4. d4 {[%emt 0:00:09]} e4 {[%emt 0:00:32]} 5. d5 {[%emt 0:00:10]} Bb4+ {[%emt 0:02:24]} 6. Bd2 {[%emt 0:00:08]} Qe7 {[%emt 0:00:15]} 7. a3 {[%emt 0:07:08]} Bxd2+ {[%emt 0:05:34]} 8. Qxd2 {[%emt 0:01:59]} cxd5 {[%emt 0:35:01]} 9. cxd5 {[%emt 0:00:59]} d6 {[%emt 0:00:09]} 10. Nc3 {[%emt 0:13:56]} O-O {[%emt 0:00:07]} 11. Rc1 {[%emt 0:11:54]} Nbd7 {[%emt 0:01:27]} 12. b4 {[%emt 0:05:51]} Nb6 {[%emt 0:02:59]} 13. Qf4 {[%emt 0:02:04]} Re8 {[%emt 0:03:41]} 14. Rd1 {[%emt 0:07:09]} Bd7 {[%emt 0:09:12]} 15. Rd4 {[%emt 0:08:22]} Rac8 {[%emt 0:06:51]} 16. Nxe4 {[%emt 0:00:10]} Nfxd5 {[%emt 0:00:11]} 17. Qd2 {[%emt 0:11:48]} Ba4 {[%emt 0:04:13]} 18. Nh3 {[%emt 0:11:46]} Rc2 {[%emt 0:04:37]} 19. Qg5 {[%emt 0:03:14]} Qxg5 {[%emt 0:04:38]} 20. Nhxg5 {[%emt 0:00:32]} Rc1+ {[%emt 0:02:50]} 21. Kd2 {[%emt 0:00:02]} Rc2+ {[%emt 0:00:05]} 22. Kd3 {[%emt 0:00:54]} f5 {[%emt 0:00:58]} 23. Nxd6 {[%emt 0:01:10]} Rexe2 {[%emt 0:01:19]} 24. Rd1 {[%emt 0:04:52]} Ra2 {[%emt 0:07:53]} 25. Bxd5+ {[%emt 0:00:10]} Nxd5 {[%emt 0:00:05]} 26. Rc1 {[%emt 0:02:37]} Red2+ {[%emt 0:04:06]} 27. Kc4 {[%emt 0:00:06]} Nb6+ {[%emt 0:00:03]} 28. Kc3 {[%emt 0:00:31]} Rxf2 {[%emt 0:02:45]} 29. Nc4 {[%emt 0:00:47]} g6 {[%emt 0:01:01]} 30. Nxb6 {[%emt 0:05:22]} axb6 {[%emt 0:00:02]} 31. Rd8+ {[%emt 0:00:52]} Kg7 {[%emt 0:00:02]} 32. Ne6+ {[%emt 0:00:32]} Kf6 {[%emt 0:01:07]} 33. Nf4 {[%emt 0:00:32]} Rxa3+ {[%emt 0:00:45]} 34. Kc4 {[%emt 0:00:07]} Bc6 {[%emt 0:00:34]} 35. Rd6+ {[%emt 0:00:51]} Ke7 {[%emt 0:00:11]} 36. Re6+ {[%emt 0:00:28]} Kf7 {[%emt 0:01:24]} 37. Ree1 {[%emt 0:00:28]} Rxh2 {[%emt 0:00:00]} 38. b5 {[%emt 0:00:38]} Be4 {[%emt 0:00:00]} 39. Kd4 {[%emt 0:00:24]} Kf6 {[%emt 0:00:42]} 40. Rc3 {[%emt 0:00:35]} Rd2+ {[%emt 0:00:28]} 41. Kc4 {[%emt 0:00:14]} Rxc3+ {[%emt 0:00:47]} 42. Kxc3 {[%emt 0:00:01]} Rf2 {[%emt 0:00:07]} 43. Kd4 {[%emt 0:00:45]} Rf3 {[%emt 0:00:42]} 44. Ne2 {[%emt 0:00:15]} Rd3+ {[%emt 0:00:30]} 45. Kc4 {[%emt 0:00:08]} Ke5 {[%emt 0:00:06]} 46. Ra1 {[%emt 0:00:22]} Re3 {[%emt 0:00:10]} 47. Nc3 {[%emt 0:00:10]} Rxg3 {[%emt 0:01:17]} 48. Ra8 {[%emt 0:00:01]} Rxc3+ {[%emt 0:00:28]} 49. Kxc3 {[%emt 0:03:06]} h5 {[%emt 0:01:13]} 50. Rg8 {[%emt 0:00:00]} f4 {[%emt 0:00:00]} 51. Re8+ {[%emt 0:00:00]} Kf5 {[%emt 0:00:00]} 52. Kd4 {[%emt 0:00:00]} Bg2 {[%emt 0:00:17]} 53. Kd3 {[%emt 0:00:00]} h4 {[%emt 0:00:58]} 54. Ke2 {[%emt 0:00:00]} h3 {[%emt 0:00:18]} 55. Kf2 {[%emt 0:00:00]} g5 {[%emt 0:00:13]} 56. Rf8+ {[%emt 0:00:11]} Kg4 {[%emt 0:00:17]} 57. Rh8 {[%emt 0:01:39]} Be4 {[%emt 0:01:10]} 58. Rh6 {[%emt 0:00:09]} f3 {[%emt 0:00:21]} 59. Rxb6 {[%emt 0:00:43]} Kf4 {[%emt 0:00:04]} 60. Rf6+ {[%emt 0:01:03]} Bf5 {[%emt 0:00:04]} 61. Rh6 g4 {[%emt 0:00:30]} 62. Rh4 h2 {[%emt 0:00:30]} 63. b6 Bd3 {[%emt 0:00:30]} 64. Rh3 gxh3 {[%emt 0:00:30]} 65. Ke1 Ke3 {[%emt 0:00:30]} 66. Kd1 h1=R# {[%emt 0:00:30]} 0-1